bitfinex/quotes_SOLUSD_20250815
["timestamp","ask_amount","ask_price","bid_price","bid_amount"]
[1755222392096,26.0,194.11,194.09,6.2978344]
[1755222392404,26.0,194.11,194.1,0.72]
[1755222393189,26.0,194.11,194.08,6.2978344]
[1755222393403,26.0,194.11,194.08,0.72]
[1755222393996,26.0,194.11,194.09,0.72]
[1755222394384,26.0,194.11,194.1,0.72]
[1755222394583,0.06,194.13,194.1,0.72]
[1755222394797,0.06,194.13,194.1,5.5778344]
[1755222395003,0.06,194.13,194.11,6.2978344]
[1755222395314,26.06,194.13,194.11,6.2978344]
[1755222395490,26.06,194.13,194.12,0.72]
[1755222395685,9.75297898,194.13,194.07,0.03]
[1755222396000,31.5778344,194.11,194.07,0.03]
[1755222396204,3.45514458,194.1,194.07,0.03]
[1755222396897,31.5778344,194.11,194.08,0.72]
[1755222396898,31.15178332,194.11,194.08,0.72]
[1755222397499,5.5778344,194.09,194.07,0.03]
[1755222397716,9.03406658,194.09,194.07,0.03]
[1755222398481,14.18644817,194.09,194.07,0.03]
[1755222398708,3.45623218,194.08,194.07,0.03]
[1755222398917,9.03406658,194.08,194.07,0.03]
[1755222399121,9.69406658,194.08,194.07,0.03]
[1755222399297,3.45623218,194.08,194.07,0.03]
[1755222400697,8.6087466,194.08,194.07,0.03]
[1755222401013,5.15251442,194.08,194.07,0.03]
[1755222401209,3.45623218,194.08,194.07,0.03]
[1755222401803,40.186581,194.08,194.07,0.03]
[1755222402092,67.41279657,194.08,194.07,0.03]
[1755222402504,75.58500796,194.08,194.07,0.03]
[1755222402812,41.10621557,194.04,194.03,0.03]
[1755222402999,87.60028215,194.04,194.03,0.03]
[1755222403323,50.80028215,194.04,194.03,0.03]
[1755222403612,29.45623218,194.04,194.03,0.03]
[1755222403986,63.29656439,194.08,194.03,0.75]
[1755222404190,3.4618836,194.07,194.04,5.5778344]
[1755222404516,3.46206609,194.08,194.06,5.5778344]
[1755222404693,26.0,194.08,194.06,0.72]
[1755222404894,26.0,194.07,194.06,0.72]
[1755222405512,5.5778344,194.1,194.04,5.5778344]
[1755222405694,9.04010028,194.09,194.04,0.72]
[1755222406006,3.46226588,194.08,194.05,0.72]
[1755222406207,26.0,194.09,194.05,0.72]
[1755222406208,3.46226588,194.07,194.05,0.72]
[1755222406416,3.46226588,194.08,194.05,0.72]
[1755222406613,3.46226588,194.07,194.05,0.72]
[1755222406820,31.15225031,194.09,194.05,0.72]
[1755222407007,3.46297329,194.08,194.05,0.72]
[1755222407316,3.46297329,194.07,194.05,0.72]
[1755222407518,31.15225031,194.09,194.05,0.72]
[1755222407739,3.46369514,194.08,194.05,0.72]
[1755222408018,31.15225031,194.09,194.03,0.03]
[1755222408019,26.0,194.05,194.03,0.03]
[1755222408412,3.46455891,194.04,194.03,0.03]
[1755222409807,5.15243407,194.09,194.03,5.53299462]
[1755222410007,26.0,194.07,194.04,5.50299462]
[1755222410218,26.0,194.07,194.05,0.72]
[1755222410394,0.06,194.11,194.06,0.72]
[1755222410597,3.46408202,194.1,194.06,0.72]
[1755222410798,0.06,194.11,194.09,4.78299462]
[1755222411010,0.06,194.11,194.1,0.72]
[1755222411506,0.06,194.11,194.1,5.50299462]
[1755222411919,0.06,194.11,194.1,0.72]
[1755222412129,0.06,194.11,194.1,5.50299462]
[1755222412737,0.06,194.11,194.1,10.51502663]
[1755222414527,0.06,194.11,194.1,5.87198351]
[1755222414823,0.06,194.11,194.1,13.39027749]
[1755222418606,0.06,194.18,194.17,13.90343276]
[1755222419122,0.06,194.18,194.17,19.0579131]
[1755222420111,0.06,194.18,194.17,13.38842015]
[1755222420424,0.06,194.18,194.17,12.66842015]
[1755222421801,0.06,194.18,194.17,13.38842015]
[1755222422413,0.06,194.18,194.17,18.55626738]
[1755222426434,0.06,194.18,194.17,18.58626738]
[1755222428965,0.06,194.18,194.17,17.86626738]
[1755222429321,0.06,194.18,194.17,12.69842015]
[1755222430725,0.06,194.18,194.17,13.41842015]
[1755222432449,0.06,194.18,194.17,18.59295083]
[1755222434763,0.06,194.18,194.17,14.99475023]
[1755222434935,0.06,194.18,194.17,10.35465685]
[1755222435131,0.73,194.18,194.17,0.03]
[1755222435360,5.37009338,194.18,194.17,0.03]
[1755222435681,0.73,194.18,194.17,0.03]
[1755222436256,0.73,194.18,194.17,4.67009338]
[1755222436469,0.73,194.18,194.17,42.05009338]
[1755222436961,0.06,194.18,194.17,47.20021955]
[1755222437341,0.06,194.18,194.17,47.92021955]
[1755222437541,0.06,194.18,194.17,47.20021955]
[1755222438239,0.06,194.18,194.17,47.92021955]
[1755222438573,0.06,194.18,194.17,47.20021955]
[1755222438739,0.73,194.18,194.17,0.03]
[1755222438944,0.73,194.18,194.17,42.05009338]
[1755222439168,0.73,194.18,194.17,47.20021955]
[1755222439449,0.06,194.18,194.17,47.20021955]
[1755222439943,0.73,194.18,194.17,42.05009338]
[1755222440166,0.73,194.18,194.17,4.67009338]
[1755222440365,0.73,194.18,194.17,42.03009338]
[1755222440849,0.73,194.18,194.17,37.39]
[1755222441277,10.51995433,194.18,194.17,0.03]
[1755222441784,13.95922897,194.18,194.17,0.03]
[1755222442646,0.06,194.18,194.17,0.03]
[1755222442849,0.06,194.18,194.17,4.67009338]
[1755222443670,0.06,194.18,194.17,9.82021955]
[1755222443870,0.06,194.18,194.17,4.67009338]
[1755222444959,0.06,194.18,194.17,9.82021955]
[1755222445684,0.06,194.18,194.17,10.54021955]
[1755222446184,0.06,194.18,194.17,11.05523216]
[1755222452781,0.06,194.18,194.17,10.54021955]
[1755222453294,0.06,194.18,194.17,47.88021955]
[1755222453866,0.06,194.18,194.17,43.24012617]
[1755222454084,0.06,194.18,194.17,47.88021955]
[1755222455270,0.06,194.19,194.17,47.88021955]
[1755222455475,0.06,194.19,194.18,4.64009338]
[1755222455669,0.06,194.2,194.18,9.99018676]
[1755222455878,0.06,194.21,194.19,43.20505295]
[1755222456071,1e-08,194.22,194.2,4.64009338]
[1755222456274,1e-08,194.24,194.21,83.60121549]
[1755222456474,4.0968729,194.28,194.24,18.01894563]
[1755222456783,4.0968729,194.28,194.27,4.64009338]
[1755222456987,4.0968729,194.28,194.27,41.98009338]
[1755222457194,4.0968729,194.28,194.27,37.34]
[1755222457363,4.0968729,194.28,194.27,41.98009338]
[1755222458379,4.0968729,194.28,194.27,47.12756854]
[1755222458572,4.0968729,194.28,194.27,47.83756854]
[1755222458969,4.0968729,194.28,194.27,47.12756854]
[1755222460786,4.0968729,194.28,194.27,42.48747516]
[1755222460986,4.7568729,194.28,194.27,47.12756854]
[1755222461193,4.0968729,194.28,194.27,47.83756854]
[1755222461883,4.0968729,194.28,194.27,47.12756854]
[1755222462073,4.7568729,194.28,194.27,47.12756854]
[1755222462278,4.7568729,194.28,194.27,41.98009338]
[1755222462672,4.7568729,194.28,194.25,5.14775694]
[1755222462872,4.1166013,194.27,194.26,37.32]
[1755222463101,0.66,194.27,194.26,41.96009338]
[1755222463308,4.0968729,194.28,194.26,41.96009338]
[1755222463482,4.0968729,194.28,194.27,4.64009338]
[1755222464672,4.0968729,194.28,194.26,42.46751775]
[1755222464879,4.0968729,194.28,194.27,4.64009338]
[1755222466576,4.0968729,194.28,194.27,9.78756854]
[1755222466772,4.0968729,194.28,194.27,4.64009338]
[1755222467013,4.7568729,194.28,194.27,4.64009338]
[1755222467391,4.0968729,194.28,194.27,9.78756854]
[1755222467784,4.0968729,194.28,194.27,4.64009338]
[1755222468279,4.0968729,194.28,194.27,9.78756854]
[1755222469014,4.0968729,194.28,194.27,10.49756854]
[1755222470601,4.0968729,194.28,194.27,9.78756854]
[1755222470982,4.0968729,194.28,194.27,10.49756854]
[1755222472415,0.2,194.31,194.27,23.36625644]
[1755222472592,0.2,194.31,194.3,4.64009338]
[1755222472900,0.2,194.31,194.3,41.94009338]
[1755222473211,0.2,194.31,194.3,38.01]
[1755222473384,0.2,194.31,194.3,42.65009338]
[1755222473915,0.2,194.31,194.3,47.79677377]
[1755222475187,0.2,194.31,194.3,43.15668039]
[1755222475396,0.2,194.31,194.3,47.79677377]
[1755222475588,0.2,194.31,194.26,26.0]
[1755222475589,0.86,194.31,194.24,12.87062016]
[1755222475886,0.2,194.31,194.3,4.64009338]
[1755222476091,0.2,194.31,194.3,37.3]
[1755222476293,0.86,194.31,194.3,37.3]
[1755222476602,0.2,194.31,194.3,41.94009338]
[1755222476990,0.2,194.31,194.3,37.3]
[1755222477186,0.2,194.31,194.3,41.94009338]
[1755222477716,0.2,194.31,194.3,47.08677377]
[1755222482494,0.87,194.31,194.3,37.3]
[1755222483715,5.51009338,194.31,194.22,2.061484]
[1755222484011,4.64009338,194.29,194.23,41.92009338]
[1755222484210,0.67,194.28,194.23,41.92009338]
[1755222484911,4.64009338,194.26,194.2,4.67009338]
[1755222485103,5.31009338,194.25,194.2,0.03]
[1755222485311,0.67,194.25,194.21,41.92009338]
[1755222485622,0.67,194.24,194.21,41.92009338]
[1755222485806,5.14733562,194.28,194.21,37.28]
[1755222485807,4.64009338,194.26,194.21,37.28]
[1755222486001,0.67,194.24,194.21,41.92009338]
[1755222486207,0.67,194.26,194.22,4.64009338]
[1755222486400,0.67,194.25,194.23,37.28]
[1755222487025,0.67,194.24,194.23,37.28]
[1755222487225,0.67,194.27,194.23,42.61009338]
[1755222487522,0.67,194.29,194.26,4.64009338]
[1755222487702,0.67,194.29,194.27,41.92009338]
[1755222487894,26.0,194.3,194.27,41.92009338]
[1755222488097,26.0,194.3,194.27,37.28]
[1755222488302,0.67,194.29,194.27,37.28]
[1755222488496,0.2,194.31,194.28,4.64009338]
[1755222488719,0.2,194.31,194.3,4.64009338]
[1755222489217,0.2,194.31,194.3,5.33009338]
[1755222490618,0.2,194.31,194.3,10.47677377]
[1755222491198,0.06,194.32,194.3,10.47677377]
[1755222491520,0.06,194.32,194.31,43.12473493]
[1755222492517,0.06,194.32,194.31,48.27115045]
[1755222492703,0.06,194.32,194.31,49.92762379]
[1755222493323,0.06,194.32,194.31,50.61762379]
[1755222493505,0.06,194.34,194.31,50.61762379]
[1755222493712,0.06,194.34,194.33,7.50120827]
[1755222494011,0.06,194.34,194.33,44.78120827]
[1755222494208,0.06,194.34,194.33,45.47120827]
[1755222494613,0.06,194.34,194.33,50.61709413]
[1755222495512,0.06,194.34,194.33,49.92709413]
[1755222497220,0.06,194.34,194.33,49.90709413]
[1755222497426,0.73,194.34,194.33,49.90709413]
[1755222497613,0.73,194.34,194.33,42.40588586]
[1755222498117,0.73,194.34,194.33,49.90709413]
[1755222498912,0.73,194.34,194.33,37.26]
[1755222501314,16.83326118,194.34,194.28,0.03]
[1755222501514,7.50120827,194.3,194.28,0.03]
[1755222501716,26.0,194.27,194.26,0.03]
[1755222501922,52.06460022,194.27,194.26,0.03]
[1755222502121,52.73460022,194.27,194.26,0.03]
[1755222502507,15.10621557,194.26,194.24,0.03]
[1755222502708,44.56339195,194.25,194.24,0.03]
[1755222503028,45.23339195,194.25,194.24,0.03]
[1755222503206,57.88260536,194.25,194.24,0.03]
[1755222505333,26.67,194.25,194.24,0.03]
[1755222505630,26.0,194.25,194.24,0.03]
[1755222506125,26.67,194.25,194.24,0.03]
[1755222506825,26.0,194.25,194.24,0.03]
[1755222507021,7.50120827,194.27,194.24,0.03]
[1755222507344,4.31558986,194.33,194.24,0.03]
[1755222507635,8.17120827,194.29,194.24,0.03]
[1755222508109,0.67,194.28,194.24,0.03]
[1755222508508,8.17120827,194.28,194.24,5.17827018]
[1755222508830,0.67,194.3,194.25,7.50120827]
[1755222509423,26.0,194.31,194.27,7.50120827]
[1755222509801,26.0,194.31,194.24,42.43827018]
[1755222509802,26.0,194.31,194.28,7.50120827]
[1755222510002,0.67,194.33,194.29,7.50120827]
[1755222510215,0.67,194.33,194.28,37.26]
[1755222510216,0.67,194.33,194.28,37.95]
[1755222510421,15.16621557,194.34,194.29,5.14694528]
[1755222510606,0.67,194.33,194.29,12.64815355]
[1755222511232,26.69,194.32,194.29,5.14694528]
[1755222511407,0.69,194.31,194.29,5.14694528]
[1755222512135,26.69,194.33,194.29,5.14694528]
[1755222512524,0.69,194.32,194.29,5.14694528]
[1755222515130,8.19120827,194.31,194.28,37.26]
[1755222515331,0.69,194.3,194.28,37.26]
[1755222515631,0.06,194.34,194.28,37.26]
[1755222515632,7.50120827,194.31,194.28,37.26]
[1755222515831,0.69,194.29,194.28,37.26]
[1755222516032,34.19120827,194.32,194.28,37.26]
[1755222516216,7.56120827,194.34,194.28,50.57839836]
[1755222516532,15.10621557,194.33,194.28,50.57839836]
[1755222516731,15.10621557,194.33,194.29,0.67]
[1755222517033,26.06,194.34,194.29,7.50120827]
[1755222517233,0.06,194.34,194.31,7.50120827]
[1755222517432,0.06,194.34,194.33,7.50120827]
[1755222517813,0.06,194.34,194.33,8.17120827]
[1755222518340,0.06,194.34,194.33,0.67]
[1755222518618,0.06,194.34,194.32,44.74120827]
[1755222518818,0.06,194.34,194.31,5.14623078]
[1755222519034,0.06,194.34,194.32,37.24]
[1755222519231,0.06,194.34,194.32,45.41120827]
[1755222519435,0.06,194.34,194.33,8.17120827]
[1755222520818,0.06,194.34,194.33,13.31709413]
[1755222522640,0.06,194.34,194.33,50.55709413]
[1755222526032,0.06,194.34,194.33,43.05588586]
[1755222526246,0.06,194.34,194.33,50.55709413]
[1755222526447,0.06,194.34,194.33,52.61794013]
[1755222527152,0.06,194.34,194.33,50.55709413]
[1755222527648,0.06,194.34,194.33,43.05588586]
[1755222527837,0.06,194.34,194.33,49.88709413]
[1755222528227,0.06,194.34,194.33,50.55709413]
[1755222530849,0.06,194.35,194.33,50.55709413]
[1755222531031,0.06,194.35,194.34,8.17120827]
[1755222531229,0.06,194.36,194.34,8.17120827]
[1755222531431,0.06,194.36,194.35,45.39120827]
[1755222532737,0.06,194.36,194.35,47.45184327]
[1755222532935,0.06,194.36,194.35,52.59719958]
[1755222533142,0.06,194.36,194.35,50.53656458]
[1755222533329,0.06,194.36,194.35,52.59719858]
[1755222534719,0.06,194.36,194.35,49.72796114]
[1755222535148,0.06,194.36,194.35,47.66732714]
[1755222535359,0.06,194.36,194.35,49.72796114]
[1755222536047,0.06,194.36,194.35,47.66732714]
[1755222537623,0.06,194.36,194.35,43.03535631]
[1755222537824,0.06,194.36,194.35,46.97732714]
[1755222538134,0.06,194.36,194.35,9.77732714]
[1755222538344,0.06,194.36,194.35,46.97732714]
[1755222540649,0.06,194.36,194.35,9.77732714]
[1755222540841,5.39197083,194.36,194.31,5.14641552]
[1755222541144,0.7,194.35,194.32,37.2]
[1755222541321,0.7,194.34,194.32,41.83197083]
[1755222542337,0.76,194.36,194.32,41.83197083]
[1755222542541,0.76,194.36,194.33,4.63197083]
[1755222542740,0.76,194.36,194.34,37.2]
[1755222542950,0.7,194.35,194.34,37.2]
[1755222543462,5.33197083,194.35,194.28,2.061165]
[1755222543665,4.63197083,194.33,194.27,4.63197083]
[1755222543959,4.63197083,194.33,194.28,37.2]
[1755222543960,0.7,194.32,194.28,37.2]
[1755222544257,0.7,194.31,194.28,37.2]
[1755222544658,0.7,194.3,194.28,37.2]
[1755222544956,0.06,194.34,194.28,41.83197083]
[1755222544957,0.7,194.31,194.28,41.83197083]
[1755222545133,0.7,194.31,194.28,4.63197083]
[1755222545328,0.7,194.31,194.29,37.18]
[1755222545524,4.63197083,194.33,194.29,37.18]
[1755222545772,0.7,194.3,194.29,37.18]
[1755222547334,0.7,194.32,194.29,37.18]
[1755222547559,0.06,194.34,194.31,4.63197083]
[1755222547849,0.06,194.34,194.32,41.81197083]
[1755222548056,0.06,194.34,194.32,46.95796733]
[1755222548358,0.06,194.34,194.33,4.63197083]
[1755222549527,0.06,194.34,194.33,10.47785669]
[1755222550143,0.06,194.34,194.33,5.84588586]
[1755222550354,0.06,194.34,194.33,10.47785669]
[1755222552529,1e-08,194.34,194.33,10.99244527]
[1755222554140,1e-08,194.34,194.33,13.05307927]
[1755222564374,0.7,194.45,194.37,15.10621557]
[1755222564666,1e-08,194.4,194.39,4.63197083]
[1755222565073,1e-08,194.4,194.39,5.33197083]
[1755222565746,0.70000001,194.4,194.39,5.14429754]
[1755222565947,0.70000001,194.4,194.34,0.7]
[1755222566249,0.70000001,194.4,194.35,54.65426683]
[1755222566862,0.70000001,194.4,194.35,46.93732714]
[1755222567059,0.70000001,194.4,194.35,51.56929814]
[1755222567971,4.63197083,194.37,194.36,37.14]
[1755222568147,5.33197083,194.37,194.36,37.14]
[1755222568347,0.7,194.37,194.36,37.14]
[1755222568750,5.33197083,194.37,194.36,37.14]
[1755222569467,0.7,194.37,194.36,37.14]
[1755222569666,3.45652148,194.38,194.36,37.14]
[1755222569862,0.70000001,194.4,194.37,9.7767977]
[1755222570060,0.7,194.39,194.38,37.14]
[1755222570464,1e-08,194.4,194.38,41.77197083]
[1755222570781,1e-08,194.4,194.39,4.63197083]
[1755222571078,1e-08,194.4,194.38,37.14]
[1755222571259,1e-08,194.4,194.39,5.33197083]
[1755222571579,1e-08,194.4,194.39,20.78354283]
[1755222571872,1e-08,194.4,194.39,25.92784037]
[1755222572767,1e-08,194.4,194.39,28.79235628]
[1755222574974,1e-08,194.4,194.39,20.59586954]
[1755222575171,1e-08,194.4,194.39,28.79235628]
[1755222575765,1e-08,194.4,194.39,28.09235628]
[1755222576557,1e-08,194.4,194.39,28.79235628]
[1755222576977,1e-08,194.4,194.39,21.29586954]
[1755222577182,1e-08,194.4,194.39,28.79235628]
[1755222578277,1e-08,194.4,194.39,28.09235628]
[1755222578486,1e-08,194.4,194.39,28.12235628]
[1755222579385,1e-08,194.4,194.39,20.62586954]
[1755222579575,1e-08,194.4,194.39,28.12235628]
[1755222579775,0.68000001,194.4,194.39,20.62586954]
[1755222580078,1e-08,194.4,194.39,65.26235628]
[1755222580385,1e-08,194.4,194.39,65.96235628]
[1755222581282,1e-08,194.4,194.39,81.5830016]
[1755222582093,1e-08,194.42,194.4,15.10621557]
[1755222582387,0.68,194.51,194.42,15.10621557]
[1755222582591,0.68,194.5,194.46,7.49648674]
[1755222582810,0.68,194.5,194.47,37.12]
[1755222583275,0.68,194.5,194.48,7.496487]
[1755222583584,0.68,194.5,194.49,37.12]
[1755222585779,0.68,194.53,194.49,49.75813926]
[1755222586087,0.68,194.52,194.49,49.75813926]
[1755222586272,0.68,194.51,194.49,49.75813926]
[1755222586474,26.74,194.54,194.5,7.49648674]
[1755222586785,0.68,194.53,194.51,44.61648674]
[1755222587094,0.68,194.53,194.51,37.12]
[1755222587301,0.68,194.52,194.51,42.2611164]
[1755222587583,0.68,194.52,194.51,37.12]
[1755222590208,0.68,194.52,194.48,7.496487]
[1755222590209,26.68,194.52,194.5,37.12]
[1755222590490,0.68,194.52,194.5,37.12]
[1755222591379,0.06,194.54,194.5,37.12]
[1755222591580,0.68,194.51,194.5,37.12]
[1755222592692,31.30796356,194.51,194.46,5.14220378]
[1755222592894,5.30796356,194.5,194.44,4.62796356]
[1755222593190,0.68,194.49,194.45,37.12]
[1755222593371,3.44779195,194.5,194.45,42.2626329]
[1755222593372,0.68,194.48,194.45,42.2626329]
[1755222593778,0.68,194.48,194.45,46.89059646]
[1755222593977,26.0,194.51,194.46,5.32796356]
[1755222594195,26.0,194.51,194.48,4.62796356]
[1755222594393,26.0,194.51,194.49,37.1]
[1755222594774,0.68,194.5,194.49,37.1]
[1755222595295,10.44950335,194.5,194.44,7.496486]
[1755222595599,5.30796356,194.49,194.44,37.1]
[1755222595891,5.14153979,194.5,194.44,37.1]
[1755222595892,0.68,194.48,194.44,37.1]
[1755222596389,0.68,194.47,194.44,37.1]
[1755222597192,15.78621557,194.5,194.45,4.62796356]
[1755222597375,30.62796356,194.51,194.45,5.32796356]
[1755222597575,0.68,194.49,194.45,5.32796356]
[1755222597997,0.68,194.49,194.45,4.62796356]
[1755222598205,0.68,194.52,194.47,4.62796356]
[1755222598496,0.68,194.51,194.47,41.72796356]
[1755222598700,0.68,194.5,194.47,37.1]
[1755222598887,4.62796356,194.49,194.47,37.1]
[1755222599071,4.62796356,194.49,194.45,37.1]
[1755222599276,0.68,194.48,194.45,37.1]
[1755222599787,4.62796356,194.5,194.45,42.24261994]
[1755222599986,0.68,194.5,194.45,47.5705835]
[1755222600597,26.0,194.51,194.46,5.28796356]
[1755222600773,26.0,194.51,194.47,5.28796356]
[1755222600974,26.65,194.51,194.47,5.28796356]
[1755222601296,0.06,194.53,194.5,4.62796356]
[1755222601598,0.06,194.53,194.51,37.1]
[1755222602786,0.06,194.53,194.51,41.72796356]
[1755222603098,0.65,194.52,194.51,37.1]
[1755222603298,0.65,194.52,194.49,37.1]
[1755222603299,8.72786001,194.52,194.49,37.1]
[1755222603592,0.65,194.51,194.49,37.1]
[1755222603810,29.44989645,194.52,194.49,37.1]
[1755222603969,0.71,194.53,194.49,37.1]
[1755222603970,0.65,194.51,194.49,37.1]
[1755222604494,3.51022029,194.53,194.49,37.1]
[1755222604799,0.65,194.52,194.49,37.1]
[1755222605094,0.65,194.51,194.49,37.1]
[1755222605298,15.10621557,194.47,194.42,0.03]
[1755222605489,45.73417913,194.43,194.42,0.03]
[1755222605675,81.65845989,194.43,194.39,0.03]
[1755222605874,45.73417913,194.4,194.39,0.03]
[1755222606070,26.0,194.4,194.39,0.03]
[1755222606294,46.38417913,194.4,194.39,0.03]
[1755222606488,49.83657868,194.4,194.39,0.03]
[1755222606693,79.83657868,194.4,194.39,0.03]
[1755222606897,79.83657868,194.4,194.36,0.03]
[1755222606898,46.25104244,194.37,194.36,0.03]
[1755222607197,46.25104244,194.37,194.28,0.03]
[1755222607198,15.10621557,194.33,194.28,0.03]
[1755222607499,15.10621557,194.29,194.28,0.03]
[1755222607802,15.10621557,194.29,194.26,0.03]
[1755222607803,45.73417913,194.27,194.26,0.03]
[1755222607973,86.28458973,194.27,194.26,0.03]
[1755222608173,86.93458973,194.27,194.26,0.03]
[1755222608782,119.82415957,194.27,194.26,0.03]
[1755222608986,124.97163473,194.27,194.26,0.03]
[1755222609178,94.97163473,194.27,194.26,0.03]
[1755222609607,57.87163473,194.27,194.26,0.03]
[1755222609815,94.99163473,194.27,194.26,0.03]
[1755222610182,124.99163473,194.27,194.26,0.03]
[1755222610990,124.97592686,194.27,194.26,0.03]
[1755222612393,114.02369073,194.27,194.26,0.03]
[1755222612589,121.54122413,194.27,194.26,1e-08]
[1755222612789,15.10621557,194.26,194.2,0.03]
[1755222613004,52.62374897,194.25,194.2,0.03]
[1755222613198,57.77175411,194.25,194.2,0.03]
[1755222613402,15.10621557,194.23,194.2,0.03]
[1755222613695,59.74374897,194.23,194.2,0.03]
[1755222613892,90.39374897,194.23,194.2,0.03]
[1755222614916,89.74374897,194.23,194.2,0.03]
[1755222615323,95.54228421,194.23,194.2,0.03]
[1755222615805,98.9601349,194.23,194.2,0.03]
[1755222615997,95.54228421,194.23,194.2,0.03]
[1755222616199,58.42228421,194.23,194.2,0.03]
[1755222616412,95.56228421,194.23,194.2,0.03]
[1755222617500,28.42228421,194.23,194.2,0.03]
[1755222617707,59.76374897,194.23,194.2,0.03]
[1755222617893,65.56228421,194.23,194.2,0.03]
[1755222618514,95.56228421,194.23,194.2,0.03]
[1755222620105,41.10621557,194.16,194.15,0.03]
[1755222620308,15.10621557,194.15,194.13,0.03]
[1755222620626,59.76374897,194.14,194.13,0.03]
[1755222620807,63.81837968,194.14,194.13,0.03]
[1755222621116,60.41374897,194.14,194.13,0.03]
[1755222621318,93.81776289,194.14,194.13,0.03]
[1755222621826,95.56467098,194.14,194.13,0.03]
[1755222622017,94.91467098,194.14,194.13,0.03]
[1755222622322,45.10621557,194.14,194.13,0.03]
[1755222622694,52.62374897,194.14,194.13,0.03]
[1755222623121,27.77467098,194.14,194.13,0.03]
[1755222623327,28.42467098,194.14,194.13,0.03]
[1755222624118,58.42467098,194.14,194.13,0.03]
[1755222626923,61.81143464,194.14,194.13,0.03]
[1755222627632,45.10621557,194.14,194.13,0.03]
[1755222627930,89.78374897,194.14,194.13,0.69]
[1755222628301,67.16,194.14,194.13,0.69]
[1755222628519,30.0,194.14,194.13,0.69]
[1755222628799,22.87065469,194.25,194.13,13.35872074]
[1755222628800,15.10621557,194.21,194.13,13.35872074]
[1755222629006,26.0,194.15,194.14,0.66]
[1755222629204,33.5175334,194.15,194.14,0.66]
[1755222629429,15.10621557,194.14,194.13,0.03]
[1755222629909,22.62374897,194.14,194.13,0.03]
[1755222630244,22.62374897,194.14,194.13,0.69]
[1755222630915,22.62374897,194.14,194.13,0.03]
[1755222631128,22.62374897,194.14,194.13,0.74]
[1755222631626,15.10621557,194.14,194.13,0.74]
[1755222631831,52.62374897,194.14,194.13,0.74]
[1755222632130,30.0,194.14,194.13,8.2575334]
[1755222632527,26.0,194.17,194.13,13.40868617]
[1755222632726,26.0,194.16,194.14,0.71]
[1755222633849,26.0,194.16,194.13,12.69868617]
[1755222634030,26.0,194.16,194.15,0.71]
[1755222634345,56.0,194.16,194.14,0.71]
[1755222635403,26.0,194.16,194.14,0.71]
[1755222636927,33.5175334,194.16,194.14,0.71]
[1755222637108,33.5175334,194.15,194.13,0.03]
[1755222637308,26.0,194.14,194.13,0.03]
[1755222637911,26.0,194.14,194.13,0.74]
[1755222638721,26.0,194.16,194.13,8.2575334]
[1755222639031,26.0,194.16,194.14,0.71]
[1755222639418,59.78374897,194.19,194.14,0.71]
[1755222639719,26.0,194.16,194.14,0.71]
[1755222639916,26.0,194.16,194.13,0.03]
[1755222640124,7.5175334,194.14,194.13,0.03]
[1755222640333,56.0,194.14,194.13,0.03]
[1755222641006,56.0,194.14,194.13,0.74]
[1755222641405,30.0,194.14,194.13,0.74]
[1755222644512,37.5175334,194.14,194.13,0.03]
[1755222644835,29.41047775,194.14,194.13,0.03]